bitfinex/quotes_BTCUSD_20250526
["timestamp","ask_amount","ask_price","bid_price","bid_amount"]
[1748225811496,0.31938389,109390.0,109380.0,1.05381579]
[1748225811649,0.31938389,109390.0,109380.0,1.06295814]
[1748225812342,0.31938389,109390.0,109380.0,0.92602041]
[1748225812540,0.31938389,109390.0,109380.0,1.05381579]
[1748225812877,0.31938389,109390.0,109380.0,1.06295814]
[1748225813081,0.31938389,109390.0,109380.0,1.05381579]
[1748225813281,0.31938389,109390.0,109380.0,0.91687814]
[1748225813495,0.31938389,109390.0,109380.0,1.06295814]
[1748225813700,0.31024229,109390.0,109380.0,1.25494902]
[1748225814125,0.31024229,109390.0,109380.0,1.24580692]
[1748225814359,0.04362754,109390.0,109380.0,1.12715305]
[1748225814568,0.04362754,109390.0,109380.0,1.33663305]
[1748225815668,0.05276847,109390.0,109380.0,1.33663305]
[1748225815892,0.04362754,109390.0,109380.0,1.33663305]
[1748225816564,0.05276847,109390.0,109380.0,1.33663305]
[1748225816909,0.05276847,109390.0,109380.0,1.19055305]
[1748225817112,0.04362754,109390.0,109380.0,1.33663305]
[1748225818428,0.01273807,109390.0,109380.0,1.33663305]
[1748225819506,0.02187892,109390.0,109380.0,0.78385141]
[1748225819852,0.02187892,109390.0,109380.0,1.27323305]
[1748225821589,0.0542034,109390.0,109380.0,1.27323305]
[1748225821941,0.07248567,109390.0,109380.0,1.27323305]
[1748225822164,0.31821823,109390.0,109380.0,0.61034528]
[1748225822407,0.31821823,109390.0,109380.0,0.62862957]
[1748225822606,0.31821823,109390.0,109380.0,1.27323314]
[1748225822784,0.31821823,109390.0,109380.0,1.27323256]
[1748225822988,0.13538617,109390.0,109380.0,1.27323256]
[1748225823186,0.14452768,109390.0,109380.0,1.27323256]
[1748225823367,0.13538617,109390.0,109380.0,1.27323256]
[1748225824064,0.14452768,109390.0,109380.0,1.27323256]
[1748225824234,0.33650134,109390.0,109380.0,0.61948714]
[1748225824435,0.13538617,109390.0,109380.0,1.26409063]
[1748225824660,0.32735974,109390.0,109380.0,1.26409071]
[1748225824827,0.32735974,109390.0,109380.0,1.25494878]
[1748225825602,0.32735974,109390.0,109380.0,1.09972676]
[1748225825758,0.31821873,109390.0,109380.0,1.11801104]
[1748225825964,0.31821873,109390.0,109380.0,1.27323306]
[1748225826466,0.34914896,109390.0,109380.0,1.27323306]
[1748225826904,0.34914896,109390.0,109380.0,1.23666449]
[1748225827131,0.34914896,109390.0,109380.0,0.90773571]
[1748225827266,0.34914896,109390.0,109380.0,1.24580676]
[1748225827954,0.34914896,109390.0,109380.0,1.25494894]
[1748225828154,0.34914896,109390.0,109380.0,1.24580676]
[1748225828361,0.34000778,109390.0,109380.0,0.89859336]
[1748225828561,0.27710778,109390.0,109380.0,0.7564252]
[1748225829072,0.34050778,109390.0,109380.0,1.24580684]
[1748225829646,0.30780778,109390.0,109380.0,1.24580684]
[1748225829798,0.27710778,109390.0,109380.0,1.24580684]
[1748225830000,0.27710778,109390.0,109380.0,1.8669812]
[1748225830308,0.27710778,109390.0,109380.0,1.86698128]
[1748225830891,0.27710778,109390.0,109380.0,1.87612338]
[1748225831250,0.28804254,109390.0,109380.0,1.87612338]
[1748225832082,0.25571806,109390.0,109380.0,1.87612338]
[1748225833465,0.25571806,109390.0,109380.0,1.7117591]
[1748225833672,0.27947663,109390.0,109380.0,1.86698128]
[1748225834112,0.30967663,109390.0,109380.0,1.72090128]
[1748225834313,0.30967663,109390.0,109380.0,1.86698128]
[1748225834732,0.30967663,109390.0,109380.0,1.30713215]
[1748225834938,0.27947663,109390.0,109380.0,1.31627433]
[1748225835247,0.24657663,109390.0,109380.0,1.31627433]
[1748225836361,0.24657663,109390.0,109380.0,1.30713215]
[1748225836710,0.24657663,109390.0,109380.0,1.85783918]
[1748225836861,0.24657663,109390.0,109380.0,1.44893918]
[1748225838233,0.25571789,109390.0,109380.0,1.44893918]
[1748225838638,0.25571789,109390.0,109380.0,1.45808145]
[1748225839184,0.2648589,109390.0,109380.0,1.46722363]
[1748225839375,0.2648589,109390.0,109380.0,1.47636573]
[1748225839742,0.07288517,109390.0,109380.0,1.50826515]
[1748225839947,0.07288517,109390.0,109380.0,1.54116515]
[1748225839948,0.06374407,109390.0,109380.0,1.54116515]
[1748225840131,0.06374399,109390.0,109380.0,1.54116515]
[1748225840335,0.072885,109390.0,109380.0,1.54116515]
[1748225840921,0.05460306,109390.0,109380.0,1.54116515]
[1748225841138,0.0436683,109390.0,109380.0,1.88116515]
[1748225841291,0.0436683,109390.0,109380.0,1.97071071]
[1748225842810,0.0436683,109390.0,109380.0,2.37961071]
[1748225843964,0.0436683,109390.0,109380.0,1.97071071]
[1748225847434,0.07598997,109390.0,109380.0,1.97071071]
[1748225848584,0.07598997,109390.0,109380.0,1.82463071]
[1748225848805,0.07598997,109390.0,109380.0,1.97071071]
[1748225852544,0.0672519,109390.0,109380.0,1.97071071]
[1748225856290,0.004,109390.0,109380.0,1.97071071]
[1748225856718,0.004,109390.0,109380.0,1.82463071]
[1748225856971,0.04105974,109400.0,109390.0,1.71556974]
[1748225857183,0.04105974,109400.0,109390.0,1.8051153]
[1748225857600,0.05635611,109420.0,109410.0,0.21021741]
[1748225857805,0.05635611,109420.0,109410.0,2.15986382]
[1748225857944,0.05635611,109420.0,109410.0,0.99669792]
[1748225858155,0.05635611,109420.0,109410.0,1.15233792]
[1748225858349,0.05635611,109420.0,109410.0,1.24185943]
[1748225858584,0.04180357,109420.0,109410.0,1.15233792]
[1748225858746,0.04180357,109420.0,109410.0,1.17973392]
[1748225859518,0.03229585,109420.0,109410.0,1.17239375]
[1748225860344,0.03229585,109420.0,109410.0,1.17439375]
[1748225860909,0.03229585,109420.0,109410.0,1.17639375]
[1748225863678,0.02741043,109440.0,109430.0,0.21017899]
[1748225863853,0.01827351,109440.0,109430.0,0.84517394]
[1748225864010,0.00913667,109440.0,109430.0,0.84517394]
[1748225864211,0.24771442,109460.0,109440.0,0.19188545]
[1748225864417,0.10144159,109460.0,109450.0,0.69909538]
[1748225864647,0.35789153,109480.0,109450.0,0.69909538]
[1748225864648,0.01455254,109480.0,109470.0,0.21010246]
[1748225864812,0.03331618,109480.0,109470.0,0.70819174]
[1748225865010,0.06071785,109480.0,109470.0,0.69905741]
[1748225865212,0.29916619,109480.0,109470.0,0.69905741]
[1748225865444,0.29916619,109480.0,109470.0,0.78814676]
[1748225866213,0.28461365,109480.0,109470.0,0.78814676]
[1748225866407,0.28761365,109480.0,109470.0,0.78814676]
[1748225867040,0.27848015,109480.0,109470.0,0.78814692]
[1748225867420,0.28048015,109480.0,109470.0,0.93418692]
[1748225868122,0.08866381,109480.0,109470.0,0.94332125]
[1748225868350,0.01463039,109480.0,109470.0,0.94332125]
[1748225868810,0.02376372,109480.0,109470.0,1.28332125]
[1748225869043,0.02376363,109480.0,109470.0,1.28332125]
[1748225870593,0.03289746,109480.0,109470.0,1.28332125]
[1748225871244,0.03289738,109480.0,109470.0,1.28332125]
[1748225872175,0.03289738,109480.0,109470.0,1.27418692]
[1748225872396,0.03289738,109480.0,109470.0,1.25587767]
[1748225872397,0.27757981,109480.0,109470.0,1.25587767]
[1748225872597,0.27757981,109480.0,109470.0,1.27414709]
[1748225872733,0.27757981,109480.0,109470.0,1.29241601]
[1748225872935,0.28671389,109480.0,109470.0,1.29241601]
[1748225873153,0.10403213,109480.0,109470.0,1.29241601]
[1748225873331,0.10403213,109480.0,109470.0,1.29241542]
[1748225875222,0.28671389,109480.0,109470.0,1.26501217]
[1748225875425,0.28671389,109480.0,109470.0,1.27414675]
[1748225875865,0.10403213,109480.0,109470.0,1.29241567]
[1748225876011,0.09489797,109480.0,109470.0,1.29241525]
[1748225877276,0.27757973,109480.0,109470.0,1.2741465]
[1748225877463,0.10403197,109480.0,109470.0,1.28328083]
[1748225879597,0.10403197,109480.0,109470.0,1.26189901]
[1748225881007,0.00549672,109480.0,109470.0,1.26189901]
[1748225881303,0.02376355,109480.0,109470.0,1.26189901]
[1748225881461,0.01463005,109480.0,109470.0,1.26189901]
[1748225881667,0.01463022,109480.0,109470.0,1.26189901]
[1748225881872,0.01463014,109480.0,109470.0,1.26189901]
[1748225882283,0.00549672,109480.0,109470.0,1.26189901]
[1748225882504,0.00549672,109480.0,109470.0,1.29189901]
[1748225882886,0.00549672,109480.0,109470.0,1.09899678]
[1748225883915,0.01399304,109480.0,109470.0,1.09899678]
[1748225889847,0.29780962,109480.0,109470.0,0.67779337]
[1748225890017,0.29780962,109480.0,109470.0,0.54096812]
[1748225890285,0.29780962,109480.0,109470.0,0.70519737]
[1748225890485,0.10599378,109480.0,109470.0,0.71433128]
[1748225890623,0.1151277,109480.0,109470.0,0.71433128]
[1748225891043,0.12443285,109480.0,109470.0,0.71433128]
[1748225891364,0.12443269,109480.0,109470.0,0.71433128]
[1748225891561,0.11512737,109480.0,109470.0,0.71433128]
[1748225891738,0.12426129,109480.0,109470.0,0.71433128]
[1748225891942,0.13294379,109480.0,109470.0,0.71433128]
[1748225892331,0.12380987,109480.0,109470.0,0.71433128]
[1748225892673,0.03180896,109480.0,109470.0,1.20328623]
[1748225893473,0.02267554,109480.0,109470.0,1.26478623]
[1748225899917,0.02267554,109480.0,109470.0,1.35433179]
[1748225900272,0.02267554,109480.0,109470.0,1.38171279]
[1748225900500,0.02267554,109480.0,109470.0,1.87066774]
[1748225900707,0.02267554,109480.0,109470.0,1.88520859]
[1748225900884,0.01417922,109480.0,109470.0,1.94520859]
[1748225901172,0.01455254,109500.0,109490.0,0.61526384]
[1748225901376,0.01470148,109500.0,109490.0,1.57666419]
[1748225902136,0.02322662,109500.0,109490.0,1.57666419]
[1748225903026,0.02322662,109500.0,109490.0,1.58576709]
[1748225903232,0.02322662,109500.0,109490.0,1.58572709]
[1748225903432,0.02322662,109500.0,109490.0,1.28448709]
[1748225903636,0.02322662,109500.0,109490.0,1.57662419]
[1748225904090,0.00867408,109500.0,109490.0,1.51142419]
[1748225904249,0.00867408,109500.0,109490.0,1.51242419]
[1748225905815,0.00867408,109500.0,109490.0,1.52174412]
[1748225906029,0.00867408,109500.0,109490.0,1.57280971]
[1748225906372,0.00867408,109500.0,109490.0,10.57280971]
[1748225907838,0.00867408,109500.0,109490.0,10.50930971]
[1748225908291,0.00867408,109500.0,109490.0,10.54160971]
[1748225909256,0.00867408,109500.0,109490.0,10.57480971]
[1748225910606,0.00867408,109500.0,109490.0,10.60218371]
[1748225912633,0.00014894,109500.0,109490.0,10.60218371]
[1748225914683,0.07362841,109540.0,109530.0,0.69894206]
[1748225914819,0.09203456,109540.0,109530.0,0.37245129]
[1748225915005,0.11910824,109540.0,109530.0,0.37245129]
[1748225915210,0.10997941,109540.0,109530.0,0.37245129]
[1748225915419,0.10966629,109540.0,109530.0,0.37245129]
[1748225915836,0.07315197,109540.0,109530.0,0.37245129]
[1748225916034,0.01165197,109540.0,109530.0,0.86140624]
[1748225917122,0.01465197,109540.0,109530.0,0.86140624]
[1748225917532,0.0329088,109540.0,109530.0,0.86140624]
[1748225917850,0.0237803,109540.0,109530.0,0.86140624]
[1748225918061,0.01465197,109540.0,109530.0,1.3547518]
[1748225918653,0.00614899,109540.0,109530.0,1.3547518]
[1748225918952,0.00014899,109540.0,109530.0,1.3547518]
[1748225919194,0.00014899,109540.0,109530.0,1.3557518]
[1748225921701,0.00014899,109540.0,109530.0,1.3831158]
[1748225923529,0.00014899,109540.0,109530.0,0.44641267]
[1748225923739,0.09228621,109540.0,109530.0,0.36599652]
[1748225923956,0.08315746,109540.0,109530.0,0.70599652]
[1748225924155,0.07402896,109540.0,109530.0,0.70599652]
[1748225924402,0.07402896,109540.0,109530.0,0.36599652]
[1748225924613,0.10141453,109540.0,109530.0,0.70599652]
[1748225924772,0.09228587,109540.0,109530.0,0.36599652]
[1748225925152,0.11054344,109540.0,109530.0,0.21911652]
[1748225925323,0.28399681,109540.0,109530.0,0.69586745]
[1748225925541,0.26205778,109530.0,109520.0,0.18260069]
[1748225925671,0.01826016,109520.0,109510.0,0.19173509]
[1748225925876,0.07880997,109520.0,109510.0,0.44542298]
[1748225926117,0.07880997,109520.0,109510.0,1.03895237]
[1748225926301,0.07880997,109520.0,109510.0,0.84483237]
[1748225926828,0.07880997,109520.0,109510.0,1.18483237]
[1748225927029,0.07880997,109520.0,109510.0,0.84483237]
[1748225927390,0.07880997,109520.0,109510.0,1.18483237]
[1748225928115,0.06967997,109520.0,109510.0,1.18483237]
[1748225928319,0.07067997,109520.0,109510.0,1.18483237]
[1748225928976,0.09807096,109520.0,109510.0,1.03895237]
[1748225929183,0.08885473,109520.0,109510.0,0.69587742]
[1748225930364,0.0797244,109520.0,109510.0,0.69587742]
[1748225931419,0.07059432,109520.0,109510.0,1.18483237]
[1748225931631,0.00947997,109520.0,109510.0,1.18483237]
[1748225933873,0.00947997,109520.0,109510.0,1.21583237]
[1748225934323,0.00947997,109520.0,109510.0,1.59373237]
[1748225941761,0.00947997,109520.0,109510.0,1.10477742]
[1748225941981,0.01860997,109520.0,109510.0,1.59373237]
[1748225942199,0.08260997,109520.0,109510.0,1.42045896]
[1748225942402,0.27435592,109520.0,109510.0,0.94066305]
[1748225942604,0.27435592,109520.0,109510.0,1.10480605]
[1748225943577,0.09174038,109520.0,109510.0,1.10480605]
[1748225943782,0.11000146,109520.0,109510.0,1.11393705]
[1748225943981,0.11913212,109520.0,109510.0,1.11393705]
[1748225944479,0.11913212,109520.0,109510.0,1.11393713]
[1748225944719,0.283487,109520.0,109510.0,0.4089]
[1748225945031,0.27435642,109520.0,109510.0,0.55482]
[1748225946023,0.27435642,109520.0,109510.0,0.14592]
[1748225946400,0.04906191,109510.0,109500.0,0.96803745]
[1748225946636,0.09059316,109510.0,109500.0,1.10482579]
[1748225947014,0.27322546,109510.0,109500.0,1.08660082]
[1748225947221,0.27322546,109510.0,109500.0,0.68683315]
[1748225947350,0.26411264,109500.0,109490.0,9.87429315]
[1748225947553,0.08146399,109500.0,109490.0,9.39447087]
[1748225947783,0.08146374,109500.0,109490.0,9.88039087]
[1748225947977,0.08046374,109500.0,109490.0,9.88039087]
[1748225948182,0.09807571,109500.0,109490.0,9.88039087]
[1748225948555,0.28172478,109500.0,109490.0,9.71820546]
[1748225948811,0.27259278,109500.0,109490.0,9.52740721]
[1748225949020,0.27259278,109500.0,109490.0,9.67332721]
[1748225949208,0.2634607,109500.0,109490.0,9.53654046]
[1748225949409,0.2634607,109500.0,109490.0,9.61692872]
[1748225949627,0.2634607,109500.0,109490.0,9.67332721]
[1748225949974,0.2634607,109500.0,109490.0,9.68246046]
[1748225950176,0.2634607,109500.0,109490.0,9.68046046]
[1748225950673,0.2634607,109500.0,109490.0,9.68146046]
[1748225950872,0.2634607,109500.0,109490.0,9.68046046]
[1748225951030,0.2674607,109500.0,109490.0,9.67946046]
[1748225951376,0.2704607,109500.0,109490.0,9.67032721]
[1748225951755,0.2704607,109500.0,109490.0,9.67771833]
[1748225951958,0.2704607,109500.0,109490.0,9.68685141]
[1748225952161,0.2704607,109500.0,109490.0,9.6868515]
[1748225953048,0.01547997,109500.0,109490.0,10.20320504]
[1748225953473,0.02461172,109500.0,109490.0,10.20320504]
[1748225953873,0.01147997,109500.0,109490.0,10.20320504]
[1748225954104,0.01761172,109500.0,109490.0,10.20320504]
[1748225954331,0.01247997,109500.0,109490.0,10.20320504]
[1748225954543,0.01247997,109500.0,109490.0,10.29272655]
[1748225954712,0.01247997,109500.0,109490.0,10.20320504]
[1748225955759,0.01247997,109500.0,109490.0,10.26700504]
[1748225956342,0.02161163,109500.0,109490.0,10.26700504]
[1748225956542,0.01247997,109500.0,109490.0,10.26700504]
[1748225956912,0.03074346,109500.0,109490.0,10.20320504]
[1748225957240,0.03074346,109500.0,109490.0,10.05728504]
[1748225957547,0.03074346,109500.0,109490.0,10.20320504]
[1748225957728,0.03074346,109500.0,109490.0,10.38761225]
[1748225958497,0.03074338,109500.0,109490.0,10.38761225]
[1748225958783,0.27849262,109500.0,109490.0,9.52440721]
[1748225958987,0.27849262,109500.0,109490.0,9.67032721]
[1748225959191,0.27849262,109500.0,109490.0,9.52440721]
[1748225959389,0.27849262,109500.0,109490.0,9.48592]
[1748225959959,0.27849262,109500.0,109490.0,9.0]
[1748225960581,0.36803818,109500.0,109490.0,9.0]
[1748225966503,0.36803818,109500.0,109490.0,8.9786202]
[1748225967608,0.36803818,109500.0,109490.0,9.17955153]
[1748225967779,0.35890618,109500.0,109490.0,9.17041853]
[1748225967985,0.35890618,109500.0,109490.0,8.98775345]
[1748225968179,0.27849262,109500.0,109490.0,9.18868462]
[1748225968817,0.27849262,109500.0,109490.0,9.19781745]
[1748225969582,0.27849262,109500.0,109490.0,9.18868462]
[1748225970013,0.01247997,109500.0,109490.0,9.74807224]
[1748225970215,0.0216118,109500.0,109490.0,9.74807224]
[1748225970419,0.01247997,109500.0,109490.0,9.74807224]
[1748225970604,0.03074346,109500.0,109490.0,9.74807224]
[1748225971068,0.01247997,109500.0,109490.0,10.08807224]
[1748225975145,0.01247997,109500.0,109490.0,9.59911729]
[1748225975351,0.02161172,109500.0,109490.0,9.68377729]
[1748225975772,0.02161163,109500.0,109490.0,9.68377729]
[1748225976236,0.01247997,109500.0,109490.0,9.68377729]
[1748225976357,0.01247997,109500.0,109490.0,10.20483224]
[1748225976563,0.01247997,109500.0,109490.0,10.23773224]
[1748225978123,0.02161163,109500.0,109490.0,10.23773224]
[1748225978323,0.01247997,109500.0,109490.0,10.23773224]
[1748225981163,0.01247997,109500.0,109490.0,9.60281729]
[1748225981343,0.07007597,109500.0,109490.0,9.68373729]
[1748225981546,0.0792083,109500.0,109490.0,9.68373729]
[1748225981743,0.07007597,109500.0,109490.0,9.68373729]
[1748225981956,0.10167597,109500.0,109490.0,9.68373729]
[1748225982545,0.11080839,109500.0,109490.0,9.67460462]
[1748225982750,0.28432504,109500.0,109490.0,9.67460462]
[1748225982894,0.10167664,109500.0,109490.0,9.69287004]
[1748225983128,0.09254422,109500.0,109490.0,9.69287004]
[1748225983330,0.10167655,109500.0,109490.0,9.69287004]
[1748225984904,0.28432495,109500.0,109490.0,9.67460462]
[1748225985081,0.28432495,109500.0,109490.0,9.68373745]
[1748225985470,0.28432495,109500.0,109490.0,9.6746047]
[1748225985672,0.28432495,109500.0,109490.0,9.53781762]
[1748225985873,0.28432495,109500.0,109490.0,9.68373762]
[1748225986074,0.27519295,109500.0,109490.0,9.6654717]
[1748225986292,0.2660607,109500.0,109490.0,9.4645402]
[1748225986454,0.2660607,109500.0,109490.0,9.66547153]
[1748225986861,0.2660607,109500.0,109490.0,9.67460445]
[1748225987219,0.09254438,109500.0,109490.0,9.6837372]
[1748225987714,0.27519278,109500.0,109490.0,9.6837372]
[1748225987917,0.2843252,109500.0,109490.0,9.6837372]
[1748225988221,0.2843252,109500.0,109490.0,9.67460445]
[1748225988363,0.2843252,109500.0,109490.0,9.68373728]
[1748225988962,0.2843252,109500.0,109490.0,9.66547153]
[1748225989100,0.27519312,109500.0,109490.0,9.64720528]
[1748225989309,0.27519312,109500.0,109490.0,9.65633845]
[1748225990080,0.26606079,109500.0,109490.0,9.4645402]
[1748225990208,0.26606079,109500.0,109490.0,9.47367345]
[1748225991501,0.25692837,109500.0,109490.0,9.3186202]
[1748225991716,0.25692837,109500.0,109490.0,9.47367345]
[1748225991954,0.123395,109500.0,109490.0,9.68373729]
[1748225992134,0.06159467,109500.0,109490.0,9.68373729]
[1748225992312,0.07072709,109500.0,109490.0,9.53781729]
[1748225992531,0.06159408,109500.0,109490.0,9.68373729]
[1748225992699,0.06159399,109500.0,109490.0,10.20419224]
[1748225993078,0.07072607,109500.0,109490.0,10.20419224]
[1748225993356,0.06159399,109500.0,109490.0,10.20419224]
[1748225993527,0.07072607,109500.0,109490.0,10.20419224]
[1748225993702,0.06159399,109500.0,109490.0,9.71523729]
[1748225993898,0.05246217,109500.0,109490.0,9.74763729]
[1748225994100,0.07072616,109500.0,109490.0,9.74763729]
[1748225994300,0.07072616,109500.0,109490.0,9.68373729]
[1748225994506,0.07072616,109500.0,109490.0,9.53781729]
[1748225994715,0.30473914,109500.0,109490.0,9.68373737]
[1748225994968,0.12209074,109500.0,109490.0,9.69287004]
[1748225995123,0.30473914,109500.0,109490.0,9.53781737]
[1748225995327,0.33523981,109500.0,109490.0,9.53781737]
[1748225995555,0.33523981,109500.0,109490.0,9.68373737]
[1748225996024,0.15259141,109500.0,109490.0,9.69287004]
[1748225996962,0.04333042,109500.0,109490.0,10.24482499]
[1748225997618,0.07072642,109500.0,109490.0,9.68373737]
[1748225997836,0.30674307,109500.0,109490.0,9.4645402]
[1748225998042,0.30674307,109500.0,109490.0,9.66547128]
[1748225998457,0.30674307,109500.0,109490.0,9.67460436]
[1748225998632,0.3158754,109500.0,109490.0,9.65633853]
[1748225998969,0.31545233,109500.0,109490.0,9.4645402]
[1748225999490,0.31545233,109500.0,109490.0,9.47367345]
[1748225999700,0.31545233,109500.0,109490.0,9.48280662]
[1748225999912,0.31545233,109500.0,109490.0,9.4919397]
[1748226000653,0.31545233,109500.0,109490.0,9.67460478]
[1748226000850,0.31545233,109500.0,109490.0,9.6837377]
[1748226001074,0.29718775,109500.0,109490.0,9.4645402]
[1748226001243,0.29718775,109500.0,109490.0,9.3186202]
[1748226001450,0.29718775,109500.0,109490.0,9.65633836]
[1748226001978,0.38673331,109500.0,109490.0,8.9786202]
[1748226003087,0.39760801,109500.0,109490.0,8.9786202]
[1748226006494,0.39760801,109500.0,109490.0,8.9572402]
[1748226006897,0.40674026,109500.0,109490.0,9.15817153]
[1748226007161,0.40674026,109500.0,109490.0,8.9572402]
[1748226007329,0.40674026,109500.0,109490.0,9.14903853]
[1748226007533,0.39760801,109500.0,109490.0,8.96637345]
[1748226007739,0.36600801,109500.0,109490.0,9.16730478]
[1748226008115,0.32423331,109500.0,109490.0,9.16730478]
[1748226008649,0.32423331,109500.0,109490.0,9.18557037]
[1748226008650,0.05203935,109500.0,109490.0,9.18557037]
[1748226008849,0.07943476,109500.0,109490.0,9.21887037]
[1748226009136,0.09769909,109500.0,109490.0,9.21887037]
[1748226009785,0.08856684,109500.0,109490.0,9.21887037]
[1748226009939,0.07943476,109500.0,109490.0,9.24997037]
[1748226010950,0.08856692,109500.0,109490.0,9.24997037]
[1748226011182,0.09769925,109500.0,109490.0,9.18557037]
[1748226011408,0.09769925,109500.0,109490.0,9.21577037]
[1748226011941,0.27121599,109500.0,109490.0,9.3223977]
[1748226012120,0.27121599,109500.0,109490.0,9.33153053]
[1748226012324,0.08856759,109500.0,109490.0,9.33152995]
[1748226012564,0.09770001,109500.0,109490.0,9.33152995]
[1748226014398,0.27121666,109500.0,109490.0,9.32239728]
[1748226014891,0.27121666,109500.0,109490.0,9.33153003]
[1748226017396,0.27121666,109500.0,109490.0,9.36323003]
[1748226018846,0.07030351,109500.0,109490.0,9.36322953]
[1748226018995,0.07943526,109500.0,109490.0,9.39342953]
[1748226019195,0.06117101,109500.0,109490.0,9.88238448]
[1748226019358,0.05203935,109500.0,109490.0,10.22238448]
[1748226019563,0.05203935,109500.0,109490.0,10.40679169]
[1748226020417,0.04333042,109500.0,109490.0,10.40679169]
[1748226022015,0.05246208,109500.0,109490.0,10.40679169]
[1748226022479,0.04333042,109500.0,109490.0,10.40679169]
[1748226023081,0.05246208,109500.0,109490.0,10.40679169]
[1748226023413,0.06159391,109500.0,109490.0,10.40679169]
[1748226023533,0.05246208,109500.0,109490.0,10.40679169]
[1748226023721,0.07072599,109500.0,109490.0,9.70997674]
[1748226023942,0.28437548,109500.0,109490.0,9.62760741]
[1748226024168,0.25337548,109500.0,109490.0,9.82853882]
[1748226024416,0.07072708,109500.0,109490.0,9.84680449]
[1748226024927,0.03987663,109500.0,109490.0,9.85593716]
[1748226025175,0.02161172,109500.0,109490.0,9.85593716]
[1748226025408,0.03987579,109500.0,109490.0,9.73472995]
[1748226025604,0.03987579,109500.0,109490.0,9.67152995]
[1748226026009,0.04900804,109500.0,109490.0,9.67152995]
[1748226026221,0.03987571,109500.0,109490.0,9.67152995]
[1748226026844,0.02161172,109500.0,109490.0,9.67152995]
[1748226027044,0.01247997,109500.0,109490.0,10.2221849]
[1748226028471,0.01247997,109500.0,109490.0,10.49613767]
[1748226031747,0.03074372,109500.0,109490.0,9.86122272]
[1748226031925,0.02161172,109500.0,109490.0,9.85589716]
[1748226032167,0.01247997,109500.0,109490.0,9.85589716]
[1748226032383,0.02161172,109500.0,109490.0,9.85589716]
[1748226032601,0.02161172,109500.0,109490.0,9.70997716]
[1748226032807,0.02161172,109500.0,109490.0,9.85589716]
[1748226033863,0.02161172,109500.0,109490.0,9.70997716]
[1748226034064,0.02161163,109500.0,109490.0,9.85589716]
[1748226034288,0.01247997,109500.0,109490.0,9.85589716]
[1748226034722,0.01247997,109500.0,109490.0,10.40795211]
[1748226035398,0.01247997,109500.0,109490.0,10.49749767]
[1748226037313,0.01247997,109500.0,109490.0,10.24379024]
[1748226038576,0.01247997,109500.0,109490.0,10.09787024]
[1748226038732,0.01247997,109500.0,109490.0,10.24379024]
[1748226039997,0.01247997,109500.0,109490.0,10.09787024]
[1748226040132,0.01247997,109500.0,109490.0,10.24379024]
[1748226044483,0.26528956,109520.0,109510.0,0.61562547]
[1748226044484,0.00870893,109520.0,109510.0,0.61562547]
[1748226044703,0.00875858,109520.0,109510.0,1.25050042]
[1748226045376,0.01788866,109520.0,109510.0,1.25050042]
[1748226045588,0.03614932,109520.0,109510.0,1.25050042]
[1748226045887,0.03914932,109520.0,109510.0,1.25050042]
[1748226046545,0.03044039,109520.0,109510.0,1.25050042]
[1748226047096,0.03044039,109520.0,109510.0,1.18490042]
[1748226047449,0.03957097,109520.0,109510.0,1.18490042]
[1748226047715,0.03044039,109520.0,109510.0,1.18490042]
[1748226047990,0.01217973,109520.0,109510.0,1.18490042]
[1748226048379,0.02130998,109520.0,109510.0,1.18490042]
[1748226048980,0.02130998,109520.0,109510.0,1.36930763]
[1748226049813,0.03044031,109520.0,109510.0,0.88035268]
[1748226050180,0.2662256,109520.0,109510.0,0.53353879]
[1748226050385,0.2662256,109520.0,109510.0,0.53122184]
[1748226050795,0.25709527,109520.0,109510.0,0.52209043]
[1748226050994,0.1826484,109500.0,109490.0,8.70353277]
[1748226051252,0.2449484,109500.0,109490.0,8.84945277]
[1748226051430,0.2449484,109500.0,109490.0,9.05038393]
[1748226051746,0.2449484,109500.0,109490.0,9.39038393]
[1748226052717,0.2449484,109500.0,109490.0,9.38125093]
[1748226052993,0.2449484,109500.0,109490.0,9.37411785]
[1748226053303,0.2449484,109500.0,109490.0,9.39238402]
[1748226053958,0.2449484,109500.0,109490.0,9.39038402]
[1748226054288,0.2449484,109500.0,109490.0,9.39138402]
[1748226054431,0.2449484,109500.0,109490.0,9.19045277]
[1748226054832,0.2449484,109500.0,109490.0,9.04453277]
[1748226055029,0.2449484,109500.0,109490.0,9.19045277]
[1748226055292,0.2449484,109500.0,109490.0,9.04453277]
[1748226055482,0.2449484,109500.0,109490.0,9.19045277]
[1748226055723,0.33449396,109500.0,109490.0,8.70453277]
[1748226055898,0.33449396,109500.0,109490.0,8.85045277]
[1748226056720,0.35173006,109500.0,109490.0,8.85045277]
[1748226057225,0.35273006,109500.0,109490.0,8.84945277]
[1748226057426,0.34620289,109500.0,109490.0,8.70353277]
[1748226057631,0.35472863,109500.0,109490.0,8.84945277]
[1748226058320,0.3460197,109500.0,109490.0,8.70353277]
[1748226058735,0.40908278,109500.0,109490.0,8.70353277]
[1748226060958,0.42362363,109500.0,109490.0,8.70353277]
[1748226061550,0.43233256,109500.0,109490.0,8.70353277]
[1748226062772,0.42362363,109500.0,109490.0,8.70353277]
[1748226063858,0.56958363,109500.0,109490.0,8.70353277]
[1748226066123,0.53734887,109500.0,109490.0,8.70353277]
[1748226066647,0.53734887,109500.0,109490.0,8.68215188]
[1748226067344,1.06567789,109500.0,109490.0,8.68215188]
[1748226067590,1.02630382,109500.0,109490.0,8.68215188]
[1748226069043,0.4109725,109500.0,109490.0,8.68215188]
[1748226069260,0.54239165,109500.0,109490.0,8.68215188]
[1748226069463,0.39643165,109500.0,109490.0,8.68215188]
[1748226069640,0.5569325,109500.0,109490.0,8.68215188]
[1748226069796,0.5569325,109500.0,109490.0,8.76783593]
[1748226069998,0.5569325,109500.0,109490.0,8.68215188]
[1748226070204,0.54822357,109500.0,109490.0,8.68215188]
[1748226070404,0.53734887,109500.0,109490.0,8.68215188]
[1748226070606,0.39138887,109500.0,109490.0,8.68215188]
[1748226070811,0.32908887,109500.0,109490.0,8.68215188]
[1748226072151,0.31454802,109500.0,109490.0,8.68215188]
[1748226073346,0.37754802,109500.0,109490.0,8.68215188]
[1748226073575,0.40972623,109500.0,109490.0,8.68215188]
[1748226075592,0.3467197,109500.0,109490.0,8.68215188]
[1748226078801,0.35542863,109500.0,109490.0,8.68215188]
[1748226079032,0.29242863,109500.0,109490.0,8.68215188]
[1748226079235,0.04763058,109500.0,109490.0,8.89221572]
[1748226079357,0.08894137,109500.0,109490.0,8.95431588]
[1748226079558,0.05241288,109500.0,109490.0,9.4524035]
[1748226079935,0.05241288,109500.0,109490.0,10.29084906]
[1748226080140,0.04370395,109500.0,109490.0,10.29084906]
[1748226080467,0.04170395,109500.0,109490.0,10.29084906]
[1748226080842,0.04270395,109500.0,109490.0,10.29084906]
[1748226081377,0.04270395,109500.0,109490.0,10.45424906]
[1748226081597,0.03417821,109500.0,109490.0,10.45424906]
[1748226081812,0.03317821,109500.0,109490.0,10.45424906]
[1748226082143,0.001,109500.0,109490.0,10.45424906]
[1748226082692,0.03222786,109520.0,109510.0,0.27202547]
[1748226082898,0.03222786,109520.0,109510.0,0.90694042]
[1748226083340,0.05900742,109520.0,109510.0,0.41798547]